fUSD/lending_fUSD_20241216
["ID","MTS","AMOUNT","RATE_DAILY","PERIOD"]
[345573411,1734360643514,-334.13255577,0.000249,2]
[345573412,1734360643526,-250.17659499,0.000249,2]
[345573413,1734360643535,-101049.2276373,0.00025,2]
[345573414,1734360643551,-10461.17145173,0.00025,2]
[345573415,1734360643562,-4415.1379485,0.00025,2]
[345573416,1734360643574,-52795.0,0.00025,2]
[345573422,1734360646027,-2000.0,0.00020996,2]
[345573423,1734360646079,-324.43996236,0.00020996,2]
[345573424,1734360646091,-521.4074932,0.00020996,2]
[345573425,1734360646103,-5654.15254444,0.00020996,2]
[345573426,1734360646113,-500.0,0.00021917,3]
[345573427,1734360646122,-500.0,0.00022945,3]
[345573428,1734360646132,-2053.88906392,0.00024296,2]
[345573429,1734360646143,-12385.86093608,0.00024296,2]
[345573430,1734360646153,-500.0,0.00024899,3]
[345573431,1734360646163,-500.0,0.00024998,3]
[345573432,1734360646171,-500.0,0.00024999,3]
[345573433,1734360646180,-500.0,0.00024999,3]
[345573434,1734360646190,-404.26064679,0.00024999,3]
[345573435,1734360646199,-396366.15097727,0.00025,2]
[345573436,1734360646210,-875.77014613,0.00025,2]
[345573437,1734360646220,-1718.94420359,0.00025,2]
[345573438,1734360646232,-459.52081689,0.00025,2]
[345573439,1734360646259,-3.00725096,0.00025,2]
[345573440,1734360646270,-536.53736174,0.00025,2]
[345573441,1734360646363,-194.47941617,0.00025,2]
[345573442,1734360646374,-3652.95477444,0.00025,2]
[345573443,1734360646386,-545.69968983,0.00025,2]
[345573444,1734360646397,-14542.00498212,0.00025,2]
[345573445,1734360646407,-1330.4897294,0.00025,2]
[345573446,1734360646418,-16299.38157709,0.00025,2]
[345573450,1734360646548,-195.7087609,0.00025,2]
[345573454,1734361358019,15896.57429954,0.0001501,2]
[345573455,1734361404227,2826.51527217,0.0001501,2]
[345573456,1734361454395,7697.05912783,0.0001501,2]
[345573467,1734361644141,-216.627455,0.00019178,2]
[345573468,1734361644166,-151.964844,0.00019178,2]
[345573469,1734361644187,-151.964844,0.00019489,3]
[345573470,1734361644210,-151.0,0.00019755,2]
[345573471,1734361644230,-216.627455,0.00019785,3]
[345573472,1734361644251,-151.964844,0.00019785,3]
[345573473,1734361644272,-151.964844,0.00019899,3]
[345573474,1734361644292,-184.27544674,0.00021064,2]
[345573475,1734361644316,-500.0,0.00021164,2]
[345573476,1734361644337,-159.72112049,0.00021164,2]
[345573477,1734361644359,-184.27544673,0.00021441,2]
[345573478,1734361644382,-776.85,0.00021649,2]
[345573479,1734361644402,-480.73184075,0.00021817,2]
[345573481,1734361762142,-500.0,0.00021164,2]
[345573482,1734361762165,-740.96,0.00021308,2]
[345573483,1734361762191,-763.96,0.00021402,2]
[345573484,1734361762213,-184.27544673,0.00021817,2]
[345573485,1734361762236,-741.58,0.00021842,2]
[345573486,1734361762262,-743.23,0.00021858,2]
[345573487,1734361762285,-746.54,0.00021884,2]
[345573488,1734361762307,-1000.0,0.00021916,2]
[345573489,1734361762331,-850.0,0.00021916,2]
[345573490,1734361762353,-500.0,0.00021917,3]
[345573491,1734361762376,-502.88989435,0.00021917,3]
[345573492,1734361762398,-272.06054692,0.00021917,3]
[345573493,1734361767095,-764.3,0.0002125,2]
[345573494,1734361767117,-500.0,0.00021917,3]
[345573495,1734361767138,-500.0,0.00021917,3]
[345573496,1734361767159,-500.0,0.00021917,3]
[345573497,1734361767185,-500.0,0.00021917,3]
[345573498,1734361767207,-502.92507719,0.00021917,3]
[345573499,1734361767228,-400.05554598,0.00021917,3]
[345573500,1734361767251,-500.0,0.00021917,3]
[345573501,1734361767272,-500.0,0.00021917,3]
[345573502,1734361767294,-500.0,0.00021917,3]
[345573503,1734361767316,-500.0,0.00021917,3]
[345573504,1734361767337,-500.0,0.00021917,3]
[345573505,1734361767360,-500.0,0.00021917,3]
[345573506,1734361767382,-506.05101411,0.00021917,3]
[345573507,1734361767403,-503.27766879,0.00021917,3]
[345573508,1734361767424,-500.0,0.00021917,3]
[345573509,1734361767446,-433.29257133,0.00021917,3]
[345573510,1734361767468,-500.0,0.00021917,3]
[345573511,1734361767490,-505.60948784,0.00021917,3]
[345573512,1734361767511,-500.0,0.00021917,3]
[345573513,1734361767532,-500.0,0.00021917,3]
[345573514,1734361767552,-226.97418844,0.00021917,3]
[345573515,1734361767580,-500.0,0.00021917,3]
[345573516,1734361767604,-500.0,0.00021917,3]
[345573517,1734361767626,-428.9669019,0.00021917,3]
[345573518,1734361767652,-500.0,0.00021917,3]
[345573519,1734361767674,-501.56010033,0.00021917,3]
[345573520,1734361767697,-500.0,0.00021917,3]
[345573521,1734361767720,-500.0,0.00021917,3]
[345573522,1734361767742,-500.0,0.00021917,3]
[345573523,1734361767765,-500.0,0.00021917,3]
[345573524,1734361767786,-500.0,0.00021917,3]
[345573525,1734361767807,-500.0,0.00021917,3]
[345573526,1734361767828,-500.0,0.00021917,3]
[345573527,1734361767851,-500.0,0.00021917,3]
[345573528,1734361767872,-500.0,0.00021917,3]
[345573529,1734361767895,-500.0,0.00021917,3]
[345573530,1734361767916,-500.0,0.00021917,3]
[345573531,1734361767938,-500.0,0.00021917,3]
[345573532,1734361767961,-500.0,0.00021917,3]
[345573533,1734361767983,-500.0,0.00021917,3]
[345573534,1734361768006,-500.0,0.00021917,3]
[345573535,1734361768028,-254.27,0.00021917,3]
[345573536,1734361768051,-500.0,0.00021917,3]
[345573537,1734361768072,-500.0,0.00021917,3]
[345573538,1734361768094,-252.95807559,0.00021917,3]
[345573539,1734361768115,-500.0,0.00021917,3]
[345573540,1734361768136,-500.0,0.00021917,3]
[345573541,1734361768158,-500.0,0.00021917,3]
[345573542,1734361768179,-500.0,0.00021917,3]
[345573543,1734361768200,-476.97587048,0.00021917,3]
[345573544,1734361768221,-555.9,0.00021917,3]
[345573545,1734361768242,-500.0,0.00021917,3]
[345573546,1734361768263,-500.0,0.00021917,3]
[345573547,1734361768285,-500.0,0.00021917,3]
[345573548,1734361768304,-500.0,0.00021917,3]
[345573549,1734361768325,-172.41008579,0.00021917,3]
[345573550,1734361768358,-254.83,0.00021917,3]
[345573551,1734361768381,-500.0,0.00021917,3]
[345573552,1734361768403,-506.75210088,0.00021917,3]
[345573553,1734361768615,-500.0,0.00021917,3]
[345573554,1734361768643,-500.0,0.00021917,3]
[345573555,1734361768667,-500.0,0.00021917,3]
[345573556,1734361768689,-500.0,0.00021917,3]
[345573557,1734361768710,-8574.7,0.00022046,2]
[345573558,1734361768736,-300.0,0.00022062,2]
[345573559,1734361768759,-500.0,0.00022062,2]
[345573560,1734361768779,-500.0,0.00022092,2]
[345573561,1734361768799,-500.0,0.000221,2]
[345573562,1734361768820,-1000.0,0.00022104,2]
[345573563,1734361768839,-2000.0,0.00022181,120]
[345573564,1734361768862,-159.89535291,0.000222,2]
[345573565,1734361768884,-250.0,0.00022276,2]
[345573566,1734361768904,-3853.33,0.00022333,2]
[345573567,1734361768924,-786.05,0.00022445,2]
[345573568,1734361768944,-1690.94,0.0002245,2]
[345573569,1734361768964,-200.0,0.00022452,2]
[345573570,1734361768985,-150.0,0.00022488,4]
[345573571,1734361802672,226.9994698,0.0002215,2]
[345573572,1734361829065,175.14526247,0.00021164,2]
[345573587,1734361832349,-475.605,0.000225,2]
[345573588,1734361832406,-326.37084313,0.000225,2]
[345573589,1734361832418,-202.86415687,0.000225,2]
[345573590,1734361832431,-750.71,0.000225,2]
[345573591,1734361832441,-758.58,0.000225,2]
[345573592,1734361832450,-737.09,0.000225,2]
[345573593,1734361832460,-608.38,0.00022516,2]
[345573594,1734361832470,-6933.95,0.0002258,2]
[345573595,1734361832480,-6753.12,0.00022586,2]
[345573596,1734361832489,-3394.22,0.00022728,2]
[345573597,1734361832499,-250.0,0.00022728,2]
[345573598,1734361832509,-162.07,0.00022728,2]
[345573599,1734361832520,-192.51,0.00022728,2]
[345573600,1734361832530,-200.0,0.00022758,2]
[345573601,1734361832539,-779.50926489,0.00022831,2]
[345573602,1734361832574,-220.49073511,0.00022831,2]
[345573603,1734361832585,-250.0,0.00022879,2]
[345573604,1734361832594,-757.97926489,0.00022888,2]
[345573605,1734361832607,-393.8,0.00022888,2]
[345573606,1734361832942,-552.26670454,0.00022888,2]
[345573607,1734361833116,-295.95403057,0.00022888,2]
[345573608,1734361833126,-213.74,0.00022892,2]
[345573609,1734361833135,-1226.09,0.00022902,2]
[345573610,1734361833145,-773.41,0.00022924,2]
[345573611,1734361833156,-23900.0,0.00022953,2]
[345573612,1734361833166,-3600.0,0.00023,24]
[345573613,1734361833191,-340.0,0.00023,2]
[345573615,1734361833202,-574.74,0.00023,2]
[345573617,1734361833212,-574.74,0.00023,2]
[345573619,1734361833223,-574.74,0.00023,2]
[345573621,1734361833233,-574.74,0.00023,2]
[345573623,1734361833243,-574.74,0.00023,2]
[345573625,1734361833253,-574.74,0.00023,2]
[345573627,1734361833263,-574.74,0.00023,2]
[345573628,1734361833273,-574.74,0.00023,2]
[345573629,1734361833284,-574.74,0.00023,2]
[345573630,1734361833294,-574.74,0.00023,2]
[345573631,1734361833304,-16630.46111433,0.00023,7]
[345573632,1734361833318,-2307.05715261,0.00023,7]
[345573633,1734361833328,-213.74,0.00023006,2]
[345573634,1734361833339,-200.0,0.0002301,2]
[345573635,1734361833349,-1124.05,0.00023013,2]
[345573636,1734361833360,-250.0,0.00023041,2]
[345573637,1734361833370,-1039.32,0.00023041,2]
[345573638,1734361833380,-2099.50480111,0.0002309,2]
[345573639,1734361833392,-447.67519889,0.0002309,2]
[345573640,1734361833401,-120.50470989,0.00023096,2]
[345573641,1734361833428,-196.09,0.00022728,2]
[345573642,1734361833439,-379.49529011,0.00023096,2]
[345573643,1734361833449,-150.0,0.00023112,4]
[345573644,1734361833459,-151.53,0.0002326,30]
[345573645,1734361833469,-150.0,0.00023485,2]
[345573646,1734361833479,-164.2,0.0002356,2]
[345573647,1734361833489,-2000.0,0.00023735,2]
[345573648,1734361833498,-150.0,0.00023737,4]
[345573649,1734361833508,-1000.0,0.00023745,2]
[345573650,1734361833518,-756.44,0.00023746,2]
[345573651,1734361833528,-554.519,0.0002375,2]
[345573652,1734361833538,-150.0,0.00023828,2]
[345573653,1734361833548,-1039.32,0.00023894,2]
[345573654,1734361833558,-20738.0768,0.000239,2]
[345573655,1734361833568,-406.01531737,0.00023901,2]
[345573656,1734361833577,-1576.633,0.00023904,5]
[345573657,1734361833587,-776.85,0.00023913,2]
[345573658,1734361833597,-487.37761909,0.00023974,2]
[345573659,1734361833606,-3600.0,0.00024,25]
[345573660,1734361833617,-744.22,0.00024,2]
[345573661,1734361833627,-9608.7551,0.00024,2]
[345573662,1734361833637,-4959.60717917,0.00024,2]
[345573663,1734361833651,-3000.0,0.000241,2]
[345573664,1734361833660,-300.0,0.000241,2]
[345573665,1734361833677,-4959.60717917,0.000241,2]
[345573666,1734361833687,-2353.0,0.0002416,2]
[345573667,1734361833697,-1124.05,0.00024163,2]
[345573668,1734361833707,-500.0,0.00024173,3]
[345573669,1734361833719,-7500.0,0.00024173,2]
[345573670,1734361833728,-29999.99,0.00024174,2]
[345573671,1734361833738,-25487.74,0.00024174,2]
[345573672,1734361833748,-4959.60717917,0.000242,2]
[345573673,1734361833759,-406.01531737,0.00024224,2]
[345573674,1734361833769,-4959.60717917,0.000243,2]
[345573675,1734361833783,-435.78,0.00024329,2]
[345573676,1734361833793,-274.36,0.00024329,2]
[345573677,1734361833802,-435.78,0.00024329,2]
[345573678,1734361833812,-435.33,0.00024329,2]
[345573679,1734361833823,-150.0,0.00024362,4]
[345573680,1734361833832,-250.0,0.000244,120]
[345573681,1734361833842,-4959.60717917,0.000244,2]
[345573682,1734361833851,-406.01531737,0.00024468,2]
[345573683,1734361833861,-251.939854,0.000245,2]
[345573684,1734361833871,-4959.60717917,0.000245,2]
[345573685,1734361833881,-2000.0,0.00024582,2]
[345573686,1734361833891,-4959.60717917,0.000246,2]
[345573687,1734361833902,-500.0,0.00024657,4]
[345573688,1734361833913,-500.0,0.00024657,4]
[345573689,1734361833928,-500.0,0.00024657,4]
[345573690,1734361833938,-500.0,0.00024657,4]
[345573691,1734361833948,-449.5,0.00024657,4]
[345573692,1734361833957,-4160.23,0.00024658,2]
[345573693,1734361833967,-1000.0,0.00024658,2]
[345573694,1734361833976,-4959.60717917,0.000247,2]
[345573695,1734361833986,-500.0,0.00024744,2]
[345573696,1734361833996,-500.0,0.00024744,2]
[345573697,1734361834006,-500.0,0.00024744,2]
[345573698,1734361834016,-500.0,0.00024744,2]
[345573699,1734361834026,-500.0,0.00024744,2]
[345573700,1734361834037,-500.0,0.00024744,2]
[345573701,1734361834047,-500.0,0.00024744,2]
[345573702,1734361834057,-500.0,0.00024744,2]
[345573703,1734361834067,-500.0,0.00024744,2]
[345573704,1734361834078,-500.0,0.00024744,2]
[345573705,1734361834087,-500.0,0.00024744,2]
[345573706,1734361834096,-500.0,0.00024744,2]
[345573707,1734361834105,-500.0,0.00024744,2]
[345573708,1734361834114,-500.0,0.00024744,2]
[345573709,1734361834123,-500.0,0.00024744,2]
[345573710,1734361834132,-500.0,0.00024744,2]
[345573711,1734361834142,-500.0,0.00024744,2]
[345573712,1734361834151,-354.38341302,0.00024744,2]
[345573713,1734361834160,-500.0,0.00024744,2]
[345573714,1734361834171,-500.0,0.00024744,2]
[345573715,1734361834182,-500.0,0.00024744,2]
[345573716,1734361834191,-500.0,0.00024744,2]
[345573717,1734361834201,-500.0,0.00024744,2]
[345573718,1734361834211,-500.0,0.00024744,2]
[345573719,1734361834220,-500.0,0.00024744,2]
[345573720,1734361834230,-500.0,0.00024744,2]
[345573721,1734361834239,-500.0,0.00024744,2]
[345573722,1734361834249,-1039.32,0.00024746,2]
[345573723,1734361834258,-2205.38779,0.0002475,2]
[345573724,1734361834268,-500.0,0.000248,120]
[345573725,1734361834277,-33075.45123831,0.000248,2]
[345573726,1734361834345,-23077.69356169,0.000248,2]
[345573727,1734361834355,-847.2312,0.000248,2]
[345573728,1734361834364,-4959.60717917,0.000248,2]
[345573729,1734361834374,-7500.0,0.00024853,2]
[345573730,1734361834384,-500.0,0.00024854,3]
[345573731,1734361834393,-500.0,0.00024854,3]
[345573732,1734361834404,-500.0,0.00024854,3]
[345573733,1734361834413,-500.0,0.00024854,3]
[345573734,1734361834427,-500.0,0.00024854,3]
[345573735,1734361834437,-500.0,0.00024854,3]
[345573736,1734361834448,-500.0,0.00024854,3]
[345573737,1734361834458,-500.0,0.00024854,3]
[345573738,1734361834469,-501.08679726,0.00024854,3]
[345573739,1734361834479,-500.0,0.00024854,3]
[345573740,1734361834489,-500.0,0.00024854,3]
[345573741,1734361834499,-500.0,0.00024854,3]
[345573742,1734361834510,-596.79,0.00024854,3]
[345573743,1734361834520,-500.0,0.00024854,3]
[345573744,1734361834530,-500.0,0.00024854,3]
[345573745,1734361834541,-500.0,0.00024854,3]
[345573746,1734361834551,-525.95,0.00024854,3]
[345573747,1734361834561,-500.0,0.00024854,3]
[345573748,1734361834571,-500.0,0.00024854,3]
[345573749,1734361834581,-500.0,0.00024854,3]
[345573750,1734361834591,-500.0,0.00024854,3]
[345573751,1734361834601,-500.0,0.00024854,3]
[345573752,1734361834611,-504.36711303,0.00024854,3]
[345573753,1734361834622,-430.64433647,0.00024854,3]
[345573754,1734361834631,-504.1810031,0.00024854,3]
[345573755,1734361834642,-500.0,0.00024854,3]
[345573756,1734361834656,-500.0,0.00024854,3]
[345573757,1734361834665,-500.0,0.00024854,3]
[345573758,1734361834679,-500.0,0.00024854,3]
[345573759,1734361834689,-500.0,0.00024854,3]
[345573760,1734361834700,-500.0,0.00024854,3]
[345573761,1734361834710,-500.0,0.00024854,3]
[345573762,1734361834719,-500.0,0.00024854,3]
[345573763,1734361834730,-269.05,0.00024854,3]
[345573764,1734361834740,-500.0,0.00024854,3]
[345573765,1734361834749,-1000.0,0.00024854,2]
[345573766,1734361834759,-500.0,0.00024854,3]
[345573767,1734361834769,-500.0,0.00024854,3]
[345573768,1734361834778,-500.0,0.00024854,3]
[345573769,1734361834788,-500.0,0.00024854,3]
[345573770,1734361834797,-500.0,0.00024854,3]
[345573771,1734361834806,-500.0,0.00024854,3]
[345573772,1734361834815,-500.0,0.00024854,3]
[345573773,1734361834826,-500.0,0.00024854,3]
[345573774,1734361834836,-500.0,0.00024854,3]
[345573775,1734361834845,-509.3182759,0.00024854,3]
[345573776,1734361834855,-505.70272138,0.00024854,3]
[345573777,1734361834865,-500.0,0.00024854,3]
[345573778,1734361834874,-516.61474241,0.00024854,4]
[345573779,1734361834884,-500.0,0.00024854,4]
[345573780,1734361834893,-500.54975752,0.00024854,4]
[345573781,1734361834903,-502.23078222,0.00024854,4]
[345573782,1734361834913,-500.47080659,0.00024854,4]
[345573783,1734361834931,-501.66838124,0.00024854,4]
[345573784,1734361834947,-500.0,0.00024854,4]
[345573785,1734361834957,-500.624301,0.00024854,4]
[345573786,1734361834966,-500.0,0.00024854,4]
[345573787,1734361834976,-500.0,0.00024854,4]
[345573788,1734361834986,-503.29520106,0.00024854,4]
[345573789,1734361834995,-500.0,0.00024854,4]
[345573790,1734361835005,-500.0,0.00024854,4]
[345573791,1734361835014,-500.0,0.00024854,4]
[345573792,1734361835024,-500.0,0.00024854,4]
[345573793,1734361835034,-500.0,0.00024854,4]
[345573794,1734361835043,-500.0,0.00024854,4]
[345573795,1734361835053,-539.92,0.00024854,4]
[345573796,1734361835063,-500.0,0.00024854,4]
[345573797,1734361835072,-500.0,0.00024854,4]
[345573798,1734361835081,-500.0,0.00024854,4]
[345573799,1734361835091,-500.0,0.00024854,4]
[345573800,1734361835101,-602.22409073,0.00024854,4]
[345573801,1734361835112,-500.0,0.00024854,4]
[345573802,1734361835122,-500.0,0.00024854,4]
[345573803,1734361835131,-500.0,0.00024854,4]
[345573804,1734361835140,-500.0,0.00024854,4]
[345573805,1734361835150,-268.45,0.00024854,4]
[345573806,1734361835159,-605.01288678,0.00024854,4]
[345573807,1734361835169,-486.68854042,0.00024855,4]
[345573808,1734361835188,-720.8254,0.0002486,2]
[345573809,1734361835207,-500.0,0.00024866,3]
[345573810,1734361835218,-500.0,0.00024866,3]
[345573811,1734361835228,-500.0,0.00024866,3]
[345573812,1734361835238,-500.0,0.00024866,3]
[345573813,1734361835248,-500.0,0.00024866,3]
[345573814,1734361835258,-500.0,0.00024866,3]
[345573815,1734361835268,-500.0,0.00024866,3]
[345573816,1734361835278,-500.0,0.00024866,3]
[345573817,1734361835475,-500.0,0.00024866,3]
[345573818,1734361835485,-500.0,0.00024866,3]
[345573819,1734361835495,-300.72838129,0.00024866,3]
[345573820,1734361835504,-500.0,0.00024866,3]
[345573821,1734361835514,-528.97,0.00024866,3]
[345573822,1734361835523,-500.0,0.00024866,3]
[345573823,1734361835535,-500.0,0.00024866,3]
[345573824,1734361835545,-511.29,0.00024866,3]
[345573825,1734361835554,-500.0,0.00024866,3]
[345573826,1734361835563,-500.0,0.00024866,3]
[345573827,1734361835573,-500.0,0.00024866,3]
[345573828,1734361835583,-500.0,0.00024866,3]
[345573829,1734361835591,-500.0,0.00024866,4]
[345573830,1734361835600,-502.20261113,0.00024866,4]
[345573831,1734361835609,-406.01531737,0.00024889,2]
[345573832,1734361835619,-5000.0,0.00024898,2]
[345573833,1734361835629,-6809.7341,0.00024899,2]
[345573834,1734361835638,-502.19019785,0.00024899,3]
[345573835,1734361835654,-575.19,0.00024899,3]
[345573836,1734361835664,-500.0,0.00024899,3]
[345573837,1734361835677,-4345.05982415,0.00024899,2]
[345573838,1734361835687,-525.95,0.00024899,3]
[345573839,1734361835697,-500.0,0.00024899,3]
[345573840,1734361835707,-500.0,0.00024899,3]
[345573841,1734361835716,-500.0,0.00024899,3]
[345573842,1734361835726,-500.0,0.00024899,3]
[345573843,1734361835736,-542.0978972,0.00024899,3]
[345573844,1734361835745,-500.0,0.00024899,3]
[345573845,1734361835754,-511.54991788,0.00024899,3]
[345573846,1734361835764,-511.36629656,0.00024899,3]
[345573847,1734361835774,-503.95798125,0.00024899,3]
[345573848,1734361835783,-504.07206989,0.00024899,3]
[345573849,1734361835792,-500.0,0.00024899,3]
[345573850,1734361835802,-1015.30056489,0.00024899,2]
[345573851,1734361835811,-500.0,0.00024899,3]
[345573852,1734361835820,-504.09388962,0.00024899,3]
[345573853,1734361835830,-508.47557585,0.00024899,3]
[345573854,1734361835840,-500.0,0.00024899,3]
[345573855,1734361835849,-505.41266917,0.00024899,3]
[345573856,1734361835859,-372.27496519,0.00024899,3]
[345573857,1734361835869,-499.6710183,0.00024899,4]
[345573858,1734361835879,-182.49344623,0.00024899,4]
[345573859,1734361835888,-500.0,0.00024899,4]
[345573860,1734361835898,-500.0,0.00024899,4]
[345573861,1734361835907,-500.0,0.00024899,4]
[345573862,1734361835916,-17095.8954,0.000249,2]
[345573863,1734361835929,-2148.6259223,0.000249,3]
[345573864,1734361835939,-1703.24025822,0.000249,3]
[345573865,1734361835950,-1703.24025822,0.000249,3]
[345573866,1734361835959,-1000.0,0.000249,2]
[345573867,1734361835969,-498.20721075,0.000249,2]
[345573868,1734361835979,-219.94445223,0.000249,2]
[345573869,1734361835988,-176.62991859,0.000249,2]
[345573870,1734361835998,-4959.60717917,0.000249,2]
[345573871,1734361836008,-547.47278352,0.000249,2]
[345573872,1734361836017,-532.2703543,0.000249,2]
[345573873,1734361836027,-282.67,0.000249,7]
[345573874,1734361836037,-212.00446971,0.000249,7]
[345573875,1734361836046,-212.0,0.000249,7]
[345573876,1734361836056,-264.48,0.000249,31]
[345573877,1734361836065,-264.48,0.000249,31]
[345573878,1734361836075,-2035.22421576,0.000249,2]
[345573879,1734361836084,-366.63723137,0.000249,2]
[345573880,1734361836093,-227.48521905,0.000249,2]
[345573881,1734361836102,-2043.04822064,0.000249,2]
[345573882,1734361836112,-2999.97,0.00024939,2]
[345573883,1734361836122,-31943.0,0.00024959,2]
[345573884,1734361836131,-501.00939743,0.00024973,2]
[345573885,1734361836140,-500.0,0.00024973,2]
[345573886,1734361836151,-341.02302598,0.00024973,2]
[345573887,1734361836164,-158.97697402,0.00024973,2]
[345573888,1734361836177,-7500.0,0.00024979,2]
[345573889,1734361836186,-9999.99,0.0002498,2]
[345573890,1734361836195,-150.99,0.0002498,2]
[345573891,1734361836204,-999.99,0.0002498,2]
[345573892,1734361836214,-150.99,0.0002498,2]
[345573893,1734361836224,-7183.32,0.0002498,2]
[345573894,1734361836233,-23556.47,0.0002498,2]
[345573895,1734361836242,-150.0,0.00024986,4]
[345573896,1734361836252,-151.11,0.00024989,2]
[345573897,1734361836262,-151.11,0.0002499,2]
[345573898,1734361836271,-151.11,0.0002499,2]
[345573899,1734361836280,-151.11,0.0002499,2]
[345573900,1734361836290,-151.11,0.0002499,2]
[345573901,1734361836299,-151.11,0.0002499,2]
[345573902,1734361836308,-151.11,0.0002499,2]
[345573903,1734361836317,-151.11,0.0002499,2]
[345573904,1734361836327,-151.11,0.0002499,2]
[345573905,1734361836337,-151.11,0.0002499,2]
[345573906,1734361836347,-151.11,0.0002499,2]
[345573907,1734361836356,-151.11,0.0002499,2]
[345573908,1734361836366,-151.11,0.0002499,2]
[345573909,1734361836376,-151.11,0.0002499,2]
[345573910,1734361836385,-151.11,0.0002499,2]
[345573911,1734361836395,-151.11,0.0002499,2]
[345573912,1734361836405,-151.11,0.0002499,2]
[345573913,1734361836414,-151.11,0.0002499,2]
[345573914,1734361836425,-151.11,0.0002499,2]
[345573915,1734361836435,-151.11,0.0002499,2]
[345573916,1734361836444,-151.11,0.0002499,2]
[345573917,1734361836455,-151.11,0.0002499,2]
[345573918,1734361836465,-151.11,0.0002499,2]
[345573919,1734361836474,-151.11,0.0002499,2]
[345573920,1734361836483,-151.11,0.0002499,2]
[345573921,1734361836493,-151.11,0.0002499,2]
[345573922,1734361836502,-151.11,0.0002499,2]
[345573923,1734361836511,-151.11,0.0002499,2]
[345573924,1734361836521,-151.11,0.0002499,2]
[345573925,1734361836530,-151.11,0.0002499,2]
[345573926,1734361836539,-151.11,0.0002499,2]
[345573927,1734361836549,-151.11,0.0002499,2]
[345573928,1734361836558,-151.11,0.0002499,2]
[345573929,1734361836568,-151.11,0.0002499,2]
[345573930,1734361836578,-151.11,0.0002499,2]
[345573931,1734361836588,-151.11,0.0002499,2]
[345573932,1734361836598,-151.11,0.0002499,2]
[345573933,1734361836607,-151.11,0.0002499,2]
[345573934,1734361836616,-151.11,0.0002499,2]
[345573935,1734361836627,-151.11,0.0002499,2]
[345573936,1734361836636,-151.11,0.0002499,2]
[345573937,1734361836648,-151.11,0.0002499,2]
[345573938,1734361836658,-151.11,0.0002499,2]
[345573939,1734361836667,-151.11,0.0002499,2]
[345573940,1734361836678,-151.11,0.0002499,2]
[345573941,1734361836688,-151.11,0.0002499,2]
[345573942,1734361836698,-151.11,0.0002499,2]
[345573943,1734361836707,-151.11,0.0002499,2]
[345573944,1734361836716,-151.11,0.0002499,2]
[345573945,1734361836727,-151.11,0.0002499,2]
[345573946,1734361836736,-151.11,0.0002499,2]
[345573947,1734361836746,-151.11,0.0002499,2]
[345573948,1734361836757,-151.11,0.0002499,2]
[345573949,1734361836766,-151.11,0.0002499,2]
[345573950,1734361836775,-151.11,0.0002499,2]
[345573951,1734361836784,-151.11,0.0002499,2]
[345573952,1734361836793,-151.11,0.0002499,2]
[345573953,1734361836802,-151.11,0.0002499,2]